fUSD/lending_fUSD_20250530
["ID","MTS","AMOUNT","RATE_DAILY","PERIOD"]
[363179243,1748615441504,-897.168699,0.0002,2]
[363179244,1748615441513,-151.0,0.0002,2]
[363179245,1748615441523,-897.168699,0.0002,2]
[363179246,1748615441532,-897.168699,0.0002,2]
[363179247,1748615441541,-151.0,0.0002,2]
[363179248,1748615441551,-151.0,0.0002,2]
[363179249,1748615441562,-223.349154,0.0002,2]
[363179250,1748615441572,-151.0,0.0002,2]
[363179251,1748615441585,-152.958323,0.0002,2]
[363179252,1748615441594,-151.0,0.0002,2]
[363179253,1748615441603,-151.0,0.0002,2]
[363179254,1748615441613,-151.0,0.0002,2]
[363179255,1748615441623,-353.92,0.0002,2]
[363179256,1748615441632,-395.8879,0.0002,2]
[363179257,1748615441642,-395.8879,0.0002,2]
[363179258,1748615441654,-353.87,0.0002,2]
[363179259,1748615441663,-151.0,0.0002,2]
[363179260,1748615441673,-151.0,0.0002,2]
[363179261,1748615441683,-353.87,0.0002,2]
[363179262,1748615441692,-654.45,0.0002,2]
[363179263,1748615441702,-350.405292,0.0002,2]
[363179264,1748615441712,-350.405292,0.0002,2]
[363179265,1748615441721,-350.405292,0.0002,2]
[363179266,1748615441730,-350.405292,0.0002,2]
[363179267,1748615441740,-350.405292,0.0002,2]
[363179268,1748615441749,-350.405292,0.0002,2]
[363179269,1748615441759,-707.74,0.0002,2]
[363179270,1748615441769,-1071.314034,0.0002,2]
[363179271,1748615441779,-277.331054,0.0002,2]
[363179272,1748615441789,-277.331054,0.0002,2]
[363179273,1748615441799,-277.331054,0.0002,2]
[363179274,1748615441809,-277.331054,0.0002,2]
[363179275,1748615441819,-151.0,0.0002,2]
[363179276,1748615441828,-216.355224,0.0002,2]
[363179277,1748615441838,-277.331054,0.0002,2]
[363179278,1748615441847,-277.331054,0.0002,2]
[363179279,1748615441857,-277.331054,0.0002,2]
[363179280,1748615441867,-277.331054,0.0002,2]
[363179281,1748615441876,-151.0,0.0002,2]
[363179282,1748615441886,-151.0,0.0002,2]
[363179283,1748615441896,-500.0,0.0002,2]
[363179284,1748615441906,-151.0,0.0002,2]
[363179285,1748615441915,-151.0,0.0002,2]
[363179286,1748615441925,-151.0,0.0002,2]
[363179287,1748615441935,-151.0,0.0002,2]
[363179288,1748615441944,-151.0,0.0002,2]
[363179289,1748615441954,-151.677918,0.0002,2]
[363179290,1748615441963,-151.0,0.0002,2]
[363179291,1748615441973,-151.0,0.0002,2]
[363179292,1748615441983,-151.0,0.0002,2]
[363179293,1748615441992,-353.92,0.0002,2]
[363179294,1748615442002,-226.32843,0.0002,2]
[363179295,1748615442011,-226.32843,0.0002,2]
[363179296,1748615442021,-226.32843,0.0002,2]
[363179297,1748615442030,-226.32843,0.0002,2]
[363179298,1748615442040,-226.32843,0.0002,2]
[363179299,1748615442050,-226.32843,0.0002,2]
[363179300,1748615442059,-226.32843,0.0002,2]
[363179301,1748615442069,-226.32843,0.0002,2]
[363179302,1748615442078,-151.0,0.0002,2]
[363179303,1748615442087,-151.0,0.0002,2]
[363179304,1748615442097,-151.0,0.0002,2]
[363179305,1748615442106,-151.0,0.0002,2]
[363179306,1748615442115,-151.0,0.0002,2]
[363179307,1748615442125,-151.0,0.0002,2]
[363179308,1748615442135,-151.0,0.0002,2]
[363179309,1748615442146,-151.0,0.0002,2]
[363179310,1748615442156,-151.0,0.0002,2]
[363179311,1748615442165,-151.0,0.0002,2]
[363179312,1748615442175,-151.0,0.0002,2]
[363179313,1748615442185,-151.0,0.0002,2]
[363179314,1748615442194,-151.0,0.0002,2]
[363179315,1748615442204,-151.0,0.0002,2]
[363179316,1748615442216,-151.0,0.0002,2]
[363179317,1748615442234,-151.0,0.0002,2]
[363179318,1748615442243,-151.0,0.0002,2]
[363179319,1748615442253,-158.058261,0.0002,2]
[363179320,1748615442262,-158.058261,0.0002,2]
[363179321,1748615442272,-158.058261,0.0002,2]
[363179322,1748615442281,-158.058261,0.0002,2]
[363179323,1748615442290,-158.058261,0.0002,2]
[363179324,1748615442300,-158.058261,0.0002,2]
[363179325,1748615442309,-158.058261,0.0002,2]
[363179326,1748615442318,-158.058261,0.0002,2]
[363179327,1748615442327,-158.058261,0.0002,2]
[363179328,1748615442349,-158.058261,0.0002,2]
[363179329,1748615442366,-151.0,0.0002,2]
[363179330,1748615442376,-151.0,0.0002,2]
[363179331,1748615442385,-151.0,0.0002,2]
[363179332,1748615442394,-151.0,0.0002,2]
[363179333,1748615442404,-151.0,0.0002,2]
[363179334,1748615442413,-151.0,0.0002,2]
[363179335,1748615442423,-151.0,0.0002,2]
[363179336,1748615442432,-151.0,0.0002,2]
[363179337,1748615442442,-223.904983,0.0002,2]
[363179338,1748615442451,-151.0,0.0002,2]
[363179339,1748615442460,-151.0,0.0002,2]
[363179340,1748615442470,-151.0,0.0002,2]
[363179341,1748615442479,-157.300792,0.0002,2]
[363179342,1748615442488,-151.0,0.0002,2]
[363179343,1748615442497,-151.0,0.0002,2]
[363179344,1748615442506,-151.0,0.0002,2]
[363179345,1748615442515,-151.0,0.0002,2]
[363179346,1748615442524,-151.0,0.0002,2]
[363179347,1748615442534,-151.0,0.0002,2]
[363179348,1748615442543,-151.0,0.0002,2]
[363179349,1748615442552,-151.0,0.0002,2]
[363179350,1748615442562,-151.0,0.0002,2]
[363179351,1748615442577,-151.0,0.0002,2]
[363179352,1748615442587,-151.0,0.0002,2]
[363179353,1748615442596,-152.902438,0.0002,2]
[363179354,1748615442607,-151.0,0.0002,2]
[363179355,1748615442616,-151.0,0.0002,2]
[363179356,1748615442626,-151.0,0.0002,2]
[363179357,1748615442635,-151.0,0.0002,2]
[363179358,1748615442645,-151.0,0.0002,2]
[363179359,1748615442655,-151.0,0.0002,2]
[363179360,1748615442665,-151.0,0.0002,2]
[363179361,1748615442674,-151.0,0.0002,2]
[363179362,1748615442683,-151.0,0.0002,2]
[363179363,1748615442693,-151.0,0.0002,2]
[363179364,1748615442702,-151.0,0.0002,2]
[363179365,1748615442711,-151.0,0.0002,2]
[363179366,1748615442720,-151.0,0.0002,2]
[363179367,1748615442730,-151.0,0.0002,2]
[363179368,1748615442740,-151.0,0.0002,2]
[363179369,1748615442750,-151.0,0.0002,2]
[363179370,1748615442759,-151.0,0.0002,2]
[363179371,1748615442769,-151.0,0.0002,2]
[363179372,1748615442778,-151.0,0.0002,2]
[363179373,1748615442787,-151.0,0.0002,2]
[363179374,1748615442797,-151.0,0.0002,2]
[363179375,1748615442806,-151.0,0.0002,2]
[363179376,1748615442815,-151.0,0.0002,2]
[363179377,1748615442825,-173.236068,0.0002,2]
[363179378,1748615442834,-173.236068,0.0002,2]
[363179379,1748615442844,-173.236068,0.0002,2]
[363179380,1748615442853,-173.236068,0.0002,2]
[363179381,1748615442866,-173.236068,0.0002,2]
[363179382,1748615442875,-173.236068,0.0002,2]
[363179383,1748615442885,-173.236068,0.0002,2]
[363179384,1748615442895,-173.236068,0.0002,2]
[363179385,1748615442905,-151.402156,0.0002,2]
[363179386,1748615442914,-151.0,0.0002,2]
[363179387,1748615442923,-151.0,0.0002,2]
[363179388,1748615442932,-151.0,0.0002,2]
[363179389,1748615442941,-151.0,0.0002,2]
[363179390,1748615442951,-151.0,0.0002,2]
[363179391,1748615442960,-107132.0446666,0.0002,2]
[363179392,1748615442969,-151.0,0.0002,2]
[363179393,1748615442978,-151.0,0.0002,2]
[363179394,1748615442988,-151.0,0.0002,2]
[363179395,1748615442997,-235.712034,0.0002,2]
[363179396,1748615443006,-151.0,0.0002,2]
[363179397,1748615443015,-151.0,0.0002,2]
[363179398,1748615443025,-153.186964,0.0002,2]
[363179399,1748615443034,-3148.8736379,0.0002,2]
[363179400,1748615443043,-151.0,0.0002,2]
[363179401,1748615443052,-151.0,0.0002,2]
[363179402,1748615443062,-153.235469,0.0002,2]
[363179403,1748615443072,-151.0,0.0002,2]
[363179404,1748615443081,-153.280355,0.0002,2]
[363179405,1748615443091,-151.0,0.0002,2]
[363179406,1748615443101,-151.0,0.0002,2]
[363179407,1748615443110,-151.0,0.0002,2]
[363179408,1748615443120,-275.630293,0.0002,2]
[363179409,1748615443129,-10639.0152176,0.0002,2]
[363179410,1748615443139,-151.0,0.0002,2]
[363179411,1748615443150,-151.0,0.0002,2]
[363179412,1748615443159,-151.0,0.0002,2]
[363179413,1748615443168,-151.0,0.0002,2]
[363179414,1748615443178,-151.0,0.0002,2]
[363179415,1748615443187,-151.0,0.0002,2]
[363179416,1748615443200,-151.0,0.0002,2]
[363179417,1748615443209,-189.993446,0.0002,2]
[363179418,1748615443219,-151.0,0.0002,2]
[363179419,1748615443229,-267.707776,0.0002,2]
[363179420,1748615443238,-21145.0878332,0.0002,2]
[363179421,1748615443248,-151.0,0.0002,2]
[363179422,1748615443258,-151.0,0.0002,2]
[363179423,1748615443267,-151.0,0.0002,2]
[363179424,1748615443277,-153.933946,0.0002,2]
[363179425,1748615443286,-151.0,0.0002,2]
[363179426,1748615443295,-151.0,0.0002,2]
[363179427,1748615443304,-151.0,0.0002,2]
[363179428,1748615443314,-151.0,0.0002,2]
[363179429,1748615443323,-151.0,0.0002,2]
[363179430,1748615443333,-151.0,0.0002,2]
[363179431,1748615443342,-151.0,0.0002,2]
[363179432,1748615443351,-151.0,0.0002,2]
[363179433,1748615443360,-151.0,0.0002,2]
[363179434,1748615443370,-151.0,0.0002,2]
[363179435,1748615443380,-151.0,0.0002,2]
[363179436,1748615443389,-151.0,0.0002,2]
[363179437,1748615443401,-151.0,0.0002,2]
[363179438,1748615443410,-155.221073,0.0002,2]
[363179439,1748615443419,-2616019.75170896,0.0002,2]
[363179440,1748615443429,-151.0,0.0002,2]
[363179441,1748615443439,-151.0,0.0002,2]
[363179442,1748615443448,-153.337601,0.0002,2]
[363179443,1748615443458,-151.0,0.0002,2]
[363179444,1748615443468,-151.0,0.0002,2]
[363179445,1748615443478,-151.0,0.0002,2]
[363179446,1748615443487,-151.0,0.0002,2]
[363179447,1748615443496,-151.0,0.0002,2]
[363179448,1748615443506,-302.21648308,0.0002,2]
[363179449,1748615443515,-151.553871,0.0002,2]
[363179450,1748615443524,-151.0,0.0002,2]
[363179451,1748615443534,-151.0,0.0002,2]
[363179452,1748615443543,-153.978837,0.0002,2]
[363179453,1748615443553,-151.0,0.0002,2]
[363179454,1748615443563,-151.0,0.0002,2]
[363179455,1748615443573,-151.0,0.0002,2]
[363179456,1748615443585,-151.0,0.0002,2]
[363179457,1748615443595,-151.0,0.0002,2]
[363179458,1748615443604,-151.0,0.0002,2]
[363179459,1748615443614,-152.064873,0.0002,2]
[363179460,1748615443624,-151.0,0.0002,2]
[363179461,1748615443634,-151.0,0.0002,2]
[363179462,1748615443643,-151.0,0.0002,2]
[363179463,1748615443655,-99363.21191858,0.0002,2]
[363179464,1748615443665,-541.97626,0.0002,2]
[363179465,1748615443675,-541.97626,0.0002,2]
[363179466,1748615443684,-541.97625,0.0002,2]
[363179467,1748615443694,-541.97626,0.0002,2]
[363179468,1748615443703,-541.97626,0.0002,2]
[363179469,1748615443713,-541.97625,0.0002,2]
[363179470,1748615443723,-151.0,0.0002,2]
[363179471,1748615443732,-151.0,0.0002,2]
[363179472,1748615443742,-151.0,0.0002,2]
[363179473,1748615443752,-151.0,0.0002,2]
[363179474,1748615443762,-151.0,0.0002,2]
[363179475,1748615443772,-4773.0,0.0002,4]
[363179476,1748615443782,-151.0,0.0002,2]
[363179477,1748615443791,-380085.8431213,0.0002,2]
[363179478,1748615443801,-151.0,0.0002,2]
[363179479,1748615443811,-241.51136,0.0002,2]
[363179480,1748615443821,-151.0,0.0002,2]
[363179481,1748615443830,-151.0,0.0002,2]
[363179482,1748615443839,-151.0,0.0002,2]
[363179483,1748615443849,-151.0,0.0002,2]
[363179484,1748615443858,-151.0,0.0002,2]
[363179485,1748615443868,-151.0,0.0002,2]
[363179486,1748615443877,-151.0,0.0002,2]
[363179487,1748615443887,-151.0,0.0002,2]
[363179488,1748615443899,-151.0,0.0002,2]
[363179489,1748615443908,-151.0,0.0002,2]
[363179490,1748615444114,-151.0,0.0002,2]
[363179491,1748615444155,-188.531369,0.0002,2]
[363179492,1748615444165,-1716.620633,0.0002,2]
[363179493,1748615444175,-1716.620633,0.0002,2]
[363179494,1748615444184,-1716.620633,0.0002,2]
[363179495,1748615444194,-1716.620633,0.0002,2]
[363179496,1748615444204,-1716.620633,0.0002,2]
[363179497,1748615444213,-1716.620633,0.0002,2]
[363179498,1748615444222,-1716.620633,0.0002,2]
[363179499,1748615444231,-1716.620633,0.0002,2]
[363179500,1748615444241,-1716.620633,0.0002,2]
[363179501,1748615444250,-1716.620633,0.0002,2]
[363179502,1748615444260,-1716.620633,0.0002,2]
[363179503,1748615444269,-1716.620633,0.0002,2]
[363179504,1748615444279,-151.0,0.0002,2]
[363179505,1748615444288,-151.0,0.0002,2]
[363179506,1748615444299,-152.493386,0.0002,2]
[363179507,1748615444309,-151.0,0.0002,2]
[363179508,1748615444319,-151.0,0.0002,2]
[363179509,1748615444328,-151.0,0.0002,2]
[363179510,1748615444338,-151.0,0.0002,2]
[363179511,1748615444347,-151.0,0.0002,2]
[363179512,1748615444358,-151.0,0.0002,2]
[363179513,1748615444368,-151.0,0.0002,2]
[363179514,1748615444377,-151.0,0.0002,2]
[363179515,1748615444386,-151.0,0.0002,2]
[363179516,1748615444396,-151.0,0.0002,2]
[363179517,1748615444406,-237.819302,0.0002,2]
[363179518,1748615444416,-151.0,0.0002,2]
[363179519,1748615444425,-151.0,0.0002,2]
[363179520,1748615444434,-151.0,0.0002,2]
[363179521,1748615444444,-151.0,0.0002,2]
[363179522,1748615444453,-151.0,0.0002,2]
[363179523,1748615444462,-151.0,0.0002,2]
[363179524,1748615444472,-151.0,0.0002,2]
[363179525,1748615444481,-151.0,0.0002,2]
[363179526,1748615444490,-151.0,0.0002,2]
[363179527,1748615444500,-151.0,0.0002,2]
[363179528,1748615444509,-151.0,0.0002,2]
[363179529,1748615444518,-151.0,0.0002,2]
[363179530,1748615444528,-151.0,0.0002,2]
[363179531,1748615444537,-151.0,0.0002,2]
[363179532,1748615444546,-173.345781,0.0002,2]
[363179533,1748615444555,-1023.498261,0.0002,2]
[363179534,1748615444567,-1023.498261,0.0002,2]
[363179535,1748615444577,-1023.498261,0.0002,2]
[363179536,1748615444587,-1023.498261,0.0002,2]
[363179537,1748615444596,-1023.498261,0.0002,2]
[363179538,1748615444606,-1023.498261,0.0002,2]
[363179539,1748615444618,-151.0,0.0002,2]
[363179540,1748615444628,-151.0,0.0002,2]
[363179541,1748615444637,-1023.498261,0.0002,2]
[363179542,1748615444647,-151.0,0.0002,2]
[363179543,1748615444659,-1023.498261,0.0002,2]
[363179544,1748615444669,-151.0,0.0002,2]
[363179545,1748615444678,-1023.498261,0.0002,2]
[363179546,1748615444688,-253.960596,0.0002,2]
[363179547,1748615444698,-1023.498261,0.0002,2]
[363179548,1748615444707,-1023.498261,0.0002,2]
[363179550,1748615444717,-1023.498261,0.0002,2]
[363179551,1748615444727,-158.726334,0.0002,2]
[363179552,1748615444736,-4984.658341,0.0002,2]
[363179553,1748615444747,-4984.658341,0.0002,2]
[363179554,1748615444756,-4984.658341,0.0002,2]
[363179555,1748615444766,-4984.658341,0.0002,2]
[363179556,1748615444776,-4984.658341,0.0002,2]
[363179557,1748615444788,-4984.658341,0.0002,2]
[363179558,1748615444802,-151.0,0.0002,2]
[363179559,1748615444811,-151.0,0.0002,2]
[363179561,1748615444821,-151.0,0.0002,2]
[363179562,1748615444831,-155.852723,0.0002,2]
[363179563,1748615444841,-4984.658341,0.0002,2]
[363179564,1748615444851,-4984.658341,0.0002,2]
[363179565,1748615444861,-4984.658341,0.0002,2]
[363179566,1748615444871,-4984.658341,0.0002,2]
[363179567,1748615444884,-4984.658341,0.0002,2]
[363179568,1748615444894,-4984.658341,0.0002,2]
[363179569,1748615444904,-1505.66965968,0.0002,4]
[363179570,1748615444936,-268.31556001,0.0002,4]
[363179582,1748615446257,-353.92,0.000198,2]
[363179583,1748615446272,-88.07877526,0.0002,2]
[363179598,1748615446629,-62.92122474,0.0002,2]
[363179599,1748615446640,-163.605166,0.0002,2]
[363179600,1748615446653,-2226.01478031,0.0002,4]
[363179601,1748615446663,-202.60386135,0.00020009,2]
[363179602,1748615446672,-4973.01383651,0.0002001,2]
[363179603,1748615446682,-151.0,0.00020014,2]
[363179604,1748615446691,-151.0,0.00020014,2]
[363179605,1748615446701,-247.765645,0.00020014,2]
[363179606,1748615446711,-247.765645,0.00020014,2]
[363179607,1748615446720,-500.0,0.00020019,2]
[363179608,1748615446730,-500.0,0.00020019,2]
[363179609,1748615446739,-500.0,0.00020019,2]
[363179610,1748615446749,-500.0,0.00020019,2]
[363179611,1748615446758,-133.8098411,0.00020027,2]
[363179612,1748615446770,-366.1901589,0.00020027,2]
[363179613,1748615446779,-316.37308057,0.00020047,2]
[363179614,1748615446804,-183.62691943,0.00020047,2]
[363179615,1748615446813,-500.0,0.00020047,2]
[363179616,1748615446823,-500.0,0.00020047,2]
[363179617,1748615446833,-500.0,0.00020047,2]
[363179618,1748615446843,-151.0,0.00020054,2]
[363179619,1748615446853,-500.0,0.00020055,2]
[363179620,1748615446862,-151.0,0.00020068,2]
[363179621,1748615446872,-151.0,0.00020068,2]
[363179622,1748615446881,-153.35827,0.00020068,2]
[363179623,1748615446891,-151.0,0.00020068,2]
[363179624,1748615446903,-151.0,0.00020068,2]
[363179625,1748615446913,-226.32843,0.00020068,2]
[363179626,1748615446922,-226.32843,0.00020068,2]
[363179627,1748615446932,-151.0,0.00020068,2]
[363179628,1748615446942,-152.933742,0.00020068,2]
[363179629,1748615446952,-500.0,0.00020074,2]
[363179630,1748615446962,-500.0,0.00020074,2]
[363179631,1748615446971,-500.0,0.00020074,2]
[363179632,1748615446980,-500.0,0.00020074,2]
[363179633,1748615446990,-173.236068,0.00020082,2]
[363179634,1748615446999,-173.236068,0.00020082,2]
[363179635,1748615447008,-151.0,0.00020082,2]
[363179636,1748615447017,-210.68513,0.00020082,2]
[363179637,1748615447027,-500.0,0.00020082,2]
[363179638,1748615447036,-1210.82395249,0.00020099,2]
[363179639,1748615447045,-277.331054,0.00020099,2]
[363179640,1748615447055,-277.331054,0.00020099,2]
[363179641,1748615447064,-151.0,0.00020099,2]
[363179642,1748615447073,-151.0,0.00020099,2]
[363179643,1748615447083,-243.519301,0.00020099,2]
[363179644,1748615447092,-151.0,0.00020099,2]
[363179645,1748615447101,-151.0,0.00020099,2]
[363179646,1748615447110,-850.26158108,0.00020099,2]
[363179647,1748615447126,-173.23667992,0.00020099,2]
[363179648,1748615447135,-1023.498261,0.00020099,2]
[363179649,1748615447144,-200.0,0.000201,2]
[363179650,1748615447155,-263.51,0.000201,2]
[363179651,1748615447164,-39.48448517,0.000201,2]
[363179652,1748615447176,-319.72287987,0.000201,2]
[363179653,1748615447187,-348.18263496,0.000201,2]
[363179654,1748615447196,-500.0,0.00020101,2]
[363179655,1748615447205,-500.0,0.00020101,2]
[363179656,1748615447214,-500.0,0.00020101,2]
[363179657,1748615447224,-500.0,0.00020101,2]
[363179658,1748615447233,-500.0,0.0002011,2]
[363179659,1748615447242,-500.0,0.0002011,2]
[363179660,1748615447251,-239.97,0.00020125,2]
[363179661,1748615447261,-500.0,0.00020129,2]
[363179662,1748615447270,-500.0,0.00020129,2]
[363179663,1748615447280,-500.0,0.00020129,2]
[363179664,1748615447289,-500.0,0.00020129,2]
[363179665,1748615447299,-500.0,0.00020137,2]
[363179666,1748615447308,-1071.314034,0.00020137,2]
[363179667,1748615447318,-1678.24990501,0.0002015,2]
[363179668,1748615447327,-188.0,0.00020156,2]
[363179669,1748615447337,-435.5098184,0.00020156,2]
[363179670,1748615447347,-585.8998764,0.00020156,2]
[363179671,1748615447357,-500.0,0.00020156,2]
[363179672,1748615447367,-259.35373123,0.00020164,2]
[363179686,1748615453223,187.6393095,0.000194,2]
[363179687,1748615489726,1274.41,0.0001684,2]
[363179688,1748615489925,1274.41,0.00019104,2]
[363179689,1748615499579,1074.34925455,0.00018758,2]
[363179690,1748615499607,22825.65074545,0.00018758,2]
[363179693,1748615662458,2571.39,0.00018758,2]
[363179694,1748615717364,1798.0,0.000194,5]
[363179695,1748615779568,1798.0,0.000192,5]
[363179696,1748615784440,4506.59,0.00019261,2]
[363179697,1748615798748,150.0,0.000194,2]
[363179698,1748615833188,790.62,0.00019291,2]
[363179699,1748615844389,155.34,0.00019315,2]
[363179700,1748615844620,155.34,0.00019325,2]
[363179701,1748615845606,155.34,0.00019334,2]
[363179702,1748615845691,155.34,0.00019344,2]
[363179703,1748615845962,155.34,0.00019354,2]
[363179704,1748615846048,155.34,0.00019363,2]
[363179705,1748615846174,155.34,0.00019373,2]
[363179706,1748615846374,155.34,0.00019383,2]
[363179707,1748615846497,155.34,0.00019392,2]
[363179708,1748615884967,-155.34,0.00019402,2]
[363179709,1748615884991,-31.5266595,0.00019407,2]
[363179710,1748615889635,-177.80822872,0.00019407,2]
[363179711,1748615893894,-40.66511178,0.00019407,2]
[363179712,1748615893930,-155.34,0.00019411,2]
[363179713,1748615904357,165.84,0.00019215,2]
[363179714,1748615952742,178.98,0.00019178,2]
[363179715,1748616011448,2310.11,0.00019315,2]
[363179717,1748616137572,1000.0,0.00019159,2]
[363179718,1748616164488,1681.52,0.00019154,2]
[363179719,1748616291311,281.28,0.00019315,2]
[363179720,1748616402347,2173.61,0.00019125,2]
[363179722,1748616415168,262.48,0.00013699,2]
[363179723,1748616429866,250.0,0.00019127,2]
[363179726,1748616498632,-376.36573027,0.00019632,2]
[363179727,1748616516996,2000.0,0.00025,120]
[363179728,1748616523971,-199.5341028,0.00019632,2]
[363179729,1748616526069,376.0,0.00018,5]
[363179730,1748616526946,-152.34978851,0.00019632,2]
[363179731,1748616528487,-158.48703992,0.00019632,2]
[363179732,1748616531204,-309.80556303,0.00019632,2]
[363179733,1748616533388,-3.45777547,0.00019632,2]
[363179734,1748616533412,-300.0,0.00019632,2]
[363179735,1748616533438,-9.11805139,0.00019632,2]
[363179736,1748616534799,-167.46577452,0.00019632,2]
[363179737,1748616536997,-123.41617409,0.00019632,2]
[363179738,1748616537235,-151.0,0.00019633,2]
[363179739,1748616537319,-3101.00002,0.00019633,2]
[363179740,1748616538522,-212.99998,0.00019633,2]
[363179741,1748616541987,2000.0,0.00025,90]
[363179742,1748616545303,743.69,0.00025,120]
[363179760,1748616579405,2081.3,0.00025,60]
[363179761,1748616611705,205.0,0.00018807,2]
[363179762,1748616617990,272.31,0.00019114,2]
[363179763,1748616632216,-313.45256197,0.00019633,2]
[363179764,1748616632226,-207.4,0.00019633,2]
[363179765,1748616632236,-150.0,0.00019644,2]
[363179766,1748616632246,-300.0,0.00019644,2]
[363179767,1748616632255,-407.01141869,0.00019644,2]
[363179768,1748616632266,-319.22059937,0.00019644,2]
[363179769,1748616632279,-473.76798194,0.00019644,2]
[363179770,1748616632288,-1118.56598316,0.00019645,2]
[363179771,1748616632299,-604.59592263,0.00019645,2]
[363179772,1748616632314,-574.34832723,0.00019645,2]
[363179773,1748616632330,-49176.04976698,0.00019645,2]
[363179774,1748616632339,-150.0,0.0001976,2]
[363179775,1748616632349,-764.769227,0.0001976,2]
[363179776,1748616632359,-22857.64403177,0.0001979,2]
[363179777,1748616632370,-16654.29287938,0.00019882,2]
[363179778,1748616632382,-13652.46652104,0.00019882,2]
[363179779,1748616632392,-16390.75483257,0.000199,2]
[363179780,1748616632403,-150.0,0.000199,2]
[363179781,1748616632413,-533.82504609,0.0001997,2]
[363179782,1748616632423,-490.1157,0.00019973,2]
[363179783,1748616632432,-731.744,0.00019995,2]
[363179784,1748616632442,-183.14,0.00019999,2]
[363179786,1748616632452,-151.0,0.0002,2]
[363179788,1748616632461,-151.0,0.0002,2]
[363179790,1748616632470,-154.101445,0.0002,2]
[363179792,1748616632479,-151.0,0.0002,2]
[363179794,1748616632488,-244.742095,0.0002,2]
[363179796,1748616632497,-244.742095,0.0002,2]
[363179798,1748616632506,-244.742095,0.0002,2]
[363179800,1748616632515,-244.742095,0.0002,2]
[363179802,1748616632524,-244.742095,0.0002,2]
[363179804,1748616632533,-244.742095,0.0002,2]
[363179806,1748616632542,-244.742095,0.0002,2]
[363179808,1748616632552,-244.742095,0.0002,2]
[363179810,1748616632561,-244.742095,0.0002,2]
[363179812,1748616632571,-244.742095,0.0002,2]
[363179814,1748616632580,-244.742095,0.0002,2]
[363179816,1748616632590,-244.742095,0.0002,2]
[363179818,1748616632599,-151.0,0.0002,2]
[363179820,1748616632608,-151.0,0.0002,2]
[363179822,1748616632618,-151.0,0.0002,2]
[363179824,1748616632627,-151.0,0.0002,2]
[363179826,1748616632636,-151.0,0.0002,2]